{"text_format":"1","workbook":"xlsx","n_sheets":3,"sheets":["Orçamento Básico","Cronograma","BDI"],"not_rendered":{"charts":0,"images":2,"macros":1,"external_links":0,"defined_names":2,"comments":0,"pivot_tables":0},"unopened":[],"bounds":{"document_bytes":16777216,"sheet_cells":100000,"rows_first":2000,"rows_last":500,"rows_between":2000,"halvings":0,"cell_chars":16384,"cell_head_chars":4096},"cells_cut":0,"cells_raw":0,"read":"whole","date_system":"1900"}

{"sheet":"Orçamento Básico","index":0,"n_rows":37,"n_cols":10,"rows_kept":37,"cut":false,"hidden":false,"merged":[[1,3,1,9],[8,2,8,9],[3,2,3,6],[4,2,4,6],[24,2,24,9],[28,7,28,8],[31,4,31,8],[11,7,11,8],[22,7,22,8],[13,2,13,9],[18,7,18,8],[20,2,20,9]]}
[]
[null,null,null,"PLANILHA ORÇAMENTÁRIA"]
[]
[null,"OBRA: ","EXECUÇÃO DE PONTILHÃO - GALERIA EM CONCRETO ARMADO",null,null,null,null,null,"DATA BASE:"]
[null,"LOCAL:","ESTRADA BARÃO DE COTEGIPE - LINHA CINCO",null,null,null,null,null,"BDI:",{"$f":"BDI!B22","v":0.24110000000000001}]
[null,null,null,null,null,null,null,null,"BDI DIF.:"]
[null,null,null,null,null,null,null,null,"REGIME ADOTADO:","Onerado"]
[null,"ITEM","REFERÊNCIA SINAPI","DESCRIÇÃO","UNID.","QUANT.","PREÇO UNIT.","BDI ADOTADO","PREÇO UNIT. C/ BDI","PREÇO TOTAL"]
[null,1,"SERVIÇOINICIAIS E PRELIMINARES"]
[null,"1.1",10775,"LOCACAO DE CONTAINER 2,30 X 6,00 M, ALT. 2,50 M, COM 1 SANITARIO, PARA ESCRITORIO, COMPLETO, SEM DIVISORIAS INTERNAS (NAO INCLUI MOBILIZACAO/DESMOBILIZACAO)                                                                                                                                                                                                                                                                                                                                              ","MES   ",2,null,{"$f":"$J$5","v":0.24110000000000001},{"$f":"G10+G10*H10","v":0},{"$f":"ROUND(F10*I10,2)","v":0}]
[null,"1.2","CPU 02","ADMINISTRAÇÃO LOCAL DA OBRA","UNID.",1,null,{"$f":"$J$5","v":0.24110000000000001},{"$f":"G11+G11*H11","v":0},{"$f":"ROUND(F11*I11,2)","v":0}]
[null,null,null,null,null,null,null,"Total Item 01",null,{"$f":"SUM(J10:J11)","v":0}]
[]
[null,2,"FUNDAÇÕES"]
[null,"2.1",96399,"EXECUÇÃO  E COMPACTAÇÃO DE CAMADA DE REGULARIZAÇÃO EM PEDRA RACHÃO/BRITA GRADUADA PARA EXECUÇÃO DO LASTRO DE CONCRETO - Fornecimento e execução","M3",20.8,null,{"$f":"$J$5","v":0.24110000000000001},{"$f":"G15+G15*H15","v":0},{"$f":"ROUND(F15*I15,2)","v":0}]
[null,"2.2",97096,"CONCRETAGEM DE RADIER, PISO DE CONCRETO OU LAJE SOBRE SOLO, FCK 30 MPA - LANÇAMENTO, ADENSAMENTO E ACABAMENTO. AF_09/2021","M3",7.8,null,{"$f":"$J$5","v":0.24110000000000001},{"$f":"G16+G16*H16","v":0},{"$f":"ROUND(F16*I16,2)","v":0}]
[null,"2.3",7156,"TELA DE ACO SOLDADA NERVURADA, CA-60, Q-196, (3,11 KG/M2), DIAMETRO DO FIO = 5,0 MM, LARGURA = 2,45 M, ESPACAMENTO DA MALHA = 10 X 10 CM                                                                                                                                                                                                                                                                                                                                                                  ","M2    ",52,null,{"$f":"$J$5","v":0.24110000000000001},{"$f":"G17+G17*H17","v":0},{"$f":"ROUND(F17*I17,2)","v":0}]
[null,"2.4",97086,"FABRICAÇÃO, MONTAGEM E DESMONTAGEM DE FORMA PARA RADIER, PISO DE CONCRETO OU LAJE SOBRE SOLO, EM MADEIRA SERRADA, 4 UTILIZAÇÕES. AF_09/2021","M2",4.62,null,{"$f":"$J$5","v":0.24110000000000001},{"$f":"G18+G18*H18","v":0},{"$f":"ROUND(F18*I18,2)","v":0}]
[null,null,null,null,null,null,null,"Total Item 02",null,{"$f":"SUM(J15:J18)","v":0}]
[]
[null,3,"EXECUÇÃO DA GALERIA"]
[null,"3.1","CPU 01","GALERIA CELULAR DE CONCRETO ARMADO PRÉ-FABRICADA, COM DIMENSÕES INTERNAS DE 3,00M X 2,00MX1,00M, MÍSULA DE 20X20CM, ESPESSURA DE PAREDE DE 15CM, CAPACIDADE DE TRÂNSITO DE 45 TON - NBR 15396 ","Unid",20,null,{"$f":"$J$5","v":0.24110000000000001},{"$f":"G22+G22*H22","v":0},{"$f":"ROUND(F22*I22,2)","v":0}]
[null,null,null,null,null,null,null,"Total Item 03",null,{"$f":"SUM(J22:J22)","v":0}]
[]
[null,4,"LAJE DE PROTEÇÃO SUPERIOR"]
[null,"4.1",97086,"FABRICAÇÃO, MONTAGEM E DESMONTAGEM DE FORMA PARA RADIER, PISO DE CONCRETO OU LAJE SOBRE SOLO, EM MADEIRA SERRADA, 4 UTILIZAÇÕES. AF_09/2021","M2",2.92,null,{"$f":"$J$5","v":0.24110000000000001},{"$f":"G26+G26*H26","v":0},{"$f":"ROUND(F26*I26,2)","v":0}]
[null,"4.2",7156,"TELA DE ACO SOLDADA NERVURADA, CA-60, Q-196, (3,11 KG/M2), DIAMETRO DO FIO = 5,0 MM, LARGURA = 2,45 M, ESPACAMENTO DA MALHA = 10 X 10 CM                                                                                                                                                                                                                                                                                                                                                                  ","M2    ",46,null,{"$f":"$J$5","v":0.24110000000000001},{"$f":"G27+G27*H27","v":0},{"$f":"ROUND(F27*I27,2)","v":0}]
[null,"4.3",97096,"CONCRETAGEM DE RADIER, PISO DE CONCRETO OU LAJE SOBRE SOLO, FCK 30 MPA - LANÇAMENTO, ADENSAMENTO E ACABAMENTO. AF_09/2021","M3",4.6000000000000005,null,{"$f":"$J$5","v":0.24110000000000001},{"$f":"G28+G28*H28","v":0},{"$f":"ROUND(F28*I28,2)","v":0}]
[null,null,null,null,null,null,null,"Total Item 04",null,{"$f":"SUM(J26:J28)","v":0}]
[]
[]
[null,null,null,null,"TOTAL GERAL DO ORÇAMENTO",null,null,null,null,{"$f":"J29+J23+J19+J12","v":0}]
[]
[]
[]
[]
[null,null,null,"Local, data, assinatura"]

{"sheet":"Cronograma","index":1,"n_rows":28,"n_cols":5,"rows_kept":28,"cut":false,"hidden":false,"merged":[[20,0,23,1],[20,2,23,2],[16,0,17,0],[16,1,17,1],[16,2,17,2],[18,0,19,0],[18,1,19,1],[18,2,19,2],[12,0,13,0],[12,1,13,1],[12,2,13,2],[14,0,15,0],[14,1,15,1],[14,2,15,2],[2,0,2,4],[5,0,5,2],[8,0,8,4],[10,0,11,0],[10,1,11,1],[10,2,11,2]]}
[]
[]
["CRONOGRAMA FÍSICO / FINANCEIRO"]
[]
[]
["OBRA: EXECUÇÃO DE PONTIHÃO - GALERIA EM CONCRETO ARMADO"]
["LOCAL: ESTRADA BARÃO DE COTEGIPE / LINHA CINCO"]
[]
["CRONOGRAMA FÍSICO-FINANCEIRO"]
[]
["ITEM","DESCRIÇÃO","TOTAL","MÊS 1","MÊS 2"]
[null,null,null,"%","%"]
[1,"SERVIÇOS INCIIAIS E PRELIMINARES",{"$f":"'Orçamento Básico'!J12","v":0},1]
[null,null,null,{"$f":"C13*D13","v":0},{"$f":"ROUND(E13*$C$15,2)","v":0}]
[2,"FUNDAÇÕES",{"$f":"'Orçamento Básico'!J19","v":0},1]
[null,null,null,{"$f":"C15*D15","v":0},{"$f":"ROUND(E15*$C$15,2)","v":0}]
[3,"EXECUÇÃO DA GALERIA",{"$f":"'Orçamento Básico'!J23","v":0},1]
[null,null,null,{"$f":"C17*D17","v":0},{"$f":"ROUND(E17*$C$17,2)","v":0}]
[4,"LAJE DE PROTEÇÃO SUPERIOR",{"$f":"'Orçamento Básico'!J29","v":0},null,1]
[null,null,null,{"$f":"C19*D19","v":0},{"$f":"ROUND(E19*$C$19,2)","v":0}]
["TOTAL",null,{"$f":"SUM(C13:C20)","v":0},{"$f":"D20+D18+D16+D14","v":0},{"$f":"+E20+E18+E16+E14","v":0}]
[null,null,null,{"$f":"D21/$C$21","v":{"$error":"#DIV/0!"}},{"$f":"E21/$C$21","v":{"$error":"#DIV/0!"}}]
[null,null,null,{"$f":"D21","v":0},{"$f":"E21+D23","v":0}]
[null,null,null,{"$f":"+D22","v":{"$error":"#DIV/0!"}},{"$f":"E22+D24","v":{"$error":"#DIV/0!"}}]
[]
[]
[]
[null,"Local, data, assinaturas"]

{"sheet":"BDI","index":2,"n_rows":52,"n_cols":35,"rows_kept":52,"cut":false,"hidden":false,"merged":[[49,2,49,6],[50,2,50,7],[39,1,39,4],[39,5,40,5],[39,6,40,7],[39,8,44,13],[41,1,41,4],[41,6,41,7],[42,1,42,4],[42,6,42,7],[43,1,43,4],[43,6,43,7],[44,1,44,4],[44,6,44,7],[35,1,35,4],[35,5,36,5],[35,6,36,7],[35,8,38,13],[37,1,37,4],[37,5,38,5],[37,6,38,7],[31,5,32,5],[31,6,32,7],[33,1,33,4],[33,5,34,5],[33,6,34,7],[2,2,2,13],[6,1,7,13],[8,1,10,4],[8,5,10,7],[8,8,8,13],[9,8,27,13],[11,1,14,4],[11,5,14,7],[15,1,20,4],[15,5,29,7],[21,1,29,4],[28,8,28,13],[29,8,34,13],[30,1,30,4],[30,6,30,7],[31,1,31,4]]}
[]
[]
[null,null,"QUADRO DE COMPOSIÇÃO DO BDI "]
[]
[null,"Obra: Execução de galeria"]
[]
[null,"Em atenção ao estabelecido pelo Acórdão 2622/2013 – TCU – Plenário reformamos a orientação e indicamos a utilização dos seguintes parâmetros para taxas de BDI:"]
[]
[null,"Tipo de obra:",null,null,null,"Construção de Redes de Abastecimento de Água, Coleta de Esgoto e Construções Correlatas",null,null,"Obras que se enquadram no tipo escolhido:",null,null,null,null,null,null,null,"Selecione o CPRB"]
[null,null,null,null,null,null,null,null,{"$f":"IF(F9=S15,S22,IF(F9=S16,S23,IF(F9=S17,S24,IF(F9=S18,S25,IF(F9=S19,S26,IF(F9=S20,S27,\"\"))))))","v":"Para o tipo de obra “Construção de Redes de Abastecimento de Água, Coleta de Esgoto e Construções Correlatas” enquadram-se: a construção de sistemas para o abastecimento de água tratada: reservatórios de distribuição, estações elevatórias de bombeamento, linhas principais de adução de longa e média distância e redes de distribuição de água; a construção de redes de coleta de esgoto, inclusive de interceptores, estações de tratamento de esgoto (ETE), estações de bombeamento de esgoto (EBE); a construção de galerias pluviais (obras de micro e macro drenagem). Esta classe compreende também: as obras de irrigação (canais); a manutenção de redes de abastecimento de água tratada; a manutenção de redes de coleta e de sistemas de tratamento de esgoto, conforme classificação 4222-7 do CNAE 2.0. Enquadra-se ainda a construção de estações de tratamento de água (ETA)."},null,null,null,null,null,null,null,"Desonerado"]
[null,null,null,null,null,null,null,null,null,null,null,null,null,null,null,null,"Onerado",null,"Escolha o tipo de obra"]
[null,"Alternativa mais adequada para a Administração Pública:",null,null,null,"Onerado",null,null,null,null,null,null,null,null,null,null,null,null,"Construção de edifícios"]
[null,null,null,null,null,null,null,null,null,null,null,null,null,null,null,null,null,null,"Construção de edifícios"]
[null,null,null,null,null,null,null,null,null,null,null,null,null,null,null,null,null,null,"Escolha o tipo de obra"]
[null,null,null,null,null,null,null,null,null,null,null,null,null,null,null,null,null,null,"Construção de edifícios"]
[null,{"$f":"IF(F16=\"OK\",\"BDI ABAIXO PODE SER ACEITO\",\"\")","v":"BDI ABAIXO PODE SER ACEITO"},null,null,null,{"$f":"IF(AD31=FALSE,\"\",IF(G32=\"FORA DO LIMITE\",\"VERIFICAR ITENS\",IF(G34=\"FORA DO LIMITE\",\"VERIFICAR ITENS\",IF(G36=\"FORA DO LIMITE\",\"VERIFICAR ITENS\",IF(G38=\"FORA DO LIMITE\",\"VERIFICAR ITENS\",IF(G40=\"FORA DO LIMITE\",\"VERIFICAR ITENS\",IF(Z30<W30,\"FORA DA FAIXA\",IF(Z30>X30,\"FORA DA FAIXA\",\"OK\"))))))))","v":"OK"},null,null,null,null,null,null,null,null,null,null,null,null,"Construção de Rodovias e Ferrovias"]
[null,null,null,null,null,null,null,null,null,null,null,null,null,null,null,null,null,null,"Construção de Redes de Abastecimento de Água, Coleta de Esgoto e Construções Correlatas"]
[null,null,null,null,null,null,null,null,null,null,null,null,null,null,null,null,null,null,"Construção e Manutenção de Estações e Redes de Distribuição de Energia Elétrica"]
[null,null,null,null,null,null,null,null,null,null,null,null,null,null,null,null,null,null,"Obras Portuárias, Marítimas e Fluviais"]
[null,null,null,null,null,null,null,null,null,null,null,null,null,null,null,null,null,null,"Fornecimento de Materiais e Equipamentos",null,null,null,null,"Obras que se enquadram no tipo escolhido:"]
[]
[null,{"$f":"IF(Z31=FALSE,IF(F9=\"Escolha o tipo de obra\",\"Escolha o tipo de obra\",IF(F12=\"ONERADO\",Z30,IF(F12=\"DESONERADO\",AB30,\"Escolha o regime de contribuição\"))),\"PREENCHER TODOS OS COMPONENTES DO BDI\")","v":0.24110000000000001},null,null,null,null,null,null,null,null,null,null,null,null,null,null,null,null,"Para o tipo de obra “Construção de Edifícios” enquadram-se: a construção e reforma de: edifícios, unidades habitacionais, escolas, hospitais, hotéis, restaurantes, armazéns e depósitos, edifícios para uso agropecuário, estações para trens e metropolitanos, estádios esportivos e quadras cobertas, instalações para embarque e desembarque de passageiros (em aeroportos, rodoviárias, portos, etc.), penitenciárias e presídios, a construção de edifícios industriais (fábricas, oficinas, galpões industriais, etc.), conforme classificação 4120-4 do CNAE 2.0. Também enquadram-se pórticos, mirantes e outros edifícios de finalidade turística."]
[null,null,null,null,null,null,null,null,null,null,null,null,null,null,null,null,null,null,"Para o tipo de obra “Construção de Rodovias e Ferrovias” enquadram-se: a construção e recuperação de: auto-estradas, rodovias e outras vias não-urbanas para passagem de veículos, vias férreas de superfície ou subterrâneas (inclusive para metropolitanos), pistas de aeroportos. Esta classe compreende também: a pavimentação de auto-estradas, rodovias e outras vias não-urbanas; construção de pontes, viadutos e túneis; a instalação de barreiras acústicas; a construção de praças de pedágio; a sinalização com pintura em rodovias e aeroportos; a instalação de placas de sinalização de tráfego e semelhantes, conforme classificação 4211-1 do CNAE 2.0. Também enquadram-se a construção, pavimentação e sinalização de vias urbanas, ruas e locais para estacionamento de veículos; a construção de praças e calçadas para pedestres; elevados, passarelas e ciclovias; metrô e VLT."]
[null,null,null,null,null,null,null,null,null,null,null,null,null,null,null,null,null,null,"Para o tipo de obra “Construção de Redes de Abastecimento de Água, Coleta de Esgoto e Construções Correlatas” enquadram-se: a construção de sistemas para o abastecimento de água tratada: reservatórios de distribuição, estações elevatórias de bombeamento, linhas principais de adução de longa e média distância e redes de distribuição de água; a construção de redes de coleta de esgoto, inclusive de interceptores, estações de tratamento de esgoto (ETE), estações de bombeamento de esgoto (EBE); a construção de galerias pluviais (obras de micro e macro drenagem). Esta classe compreende também: as obras de irrigação (canais); a manutenção de redes de abastecimento de água tratada; a manutenção de redes de coleta e de sistemas de tratamento de esgoto, conforme classificação 4222-7 do CNAE 2.0. Enquadra-se ainda a construção de estações de tratamento de água (ETA)."]
[null,null,null,null,null,null,null,null,null,null,null,null,null,null,null,null,null,null,"Para o tipo de obra “Construção e Manutenção de Estações e Redes de Distribuição de Energia Elétrica” enquadram-se: a construção de usinas, estações e subestações hidrelétricas, eólicas, nucleares, termoelétricas; a construção de redes de transmissão e distribuição de energia elétrica, inclusive o serviço de eletrificação rural. Esta subclasse compreende também: a construção de redes de eletrificação para ferrovias e metropolitano, conforme classificação 4221-9/02 do CNAE 2.0. Compreende ainda: a manutenção de redes de distribuição de energia elétrica, quando executada por empresa não-produtora ou distribuidora de energia elétrica, conforme classificação 4221-9/03 do CNAE 2.0. Enquadram-se também obras de iluminação pública e a construção de barragens e represas para geração de energia elétrica."]
[null,null,null,null,null,null,null,null,null,null,null,null,null,null,null,null,null,null,"Para o tipo de obra “Portuárias, Marítimas e Fluviais” enquadram-se: as obras marítimas e fluviais, tais como, construção de instalações portuárias; construção de portos e marinas; construção de eclusas e canais de navegação (vias navegáveis); enrocamentos; obras de dragagem; aterro hidráulico; barragens, represas e diques, exceto para energia elétrica; a construção de emissários submarinos; a instalação de cabos submarinos, conforme classificação 4291-0 do CNAE 2.0. Enquadram-se também a construção de piers e outras obras com influência direta de cursos d’água. "]
[null,null,null,null,null,null,null,null,null,null,null,null,null,null,null,null,null,null,"Enquadram-se como “Fornecimento de Materiais e Equipamentos”, conforme tabela apresentada no item 1 desta CE, especificamente o fornecimento de materiais e equipamentos relevantes de natureza específica, como é o caso de: - materiais betuminosos para obras rodoviárias; - tubos de ferro fundido ou PVC para obras de abastecimento de água; - elevadores e escadas rolantes para obras aeroportuárias. Comprovada a inviabilidade técnico-econômica de parcelamento do objeto da licitação, os itens de fornecimento de materiais e equipamentos relevantes de natureza específica, que possam ser fornecidos por empresas com especialidades próprias e diversas e que representem percentual significativo do preço global da obra devem apresentar incidência de taxa de BDI reduzida em relação à taxa aplicável aos demais itens da obra."]
[]
[null,null,null,null,null,null,null,null,"OBSERVAÇÕES",null,null,null,null,null,null,null,null,null,"Escolha o regime de contribuição",null,null,null,"Mín","Máx",null,"Cálculo s/ os 2%",null,"Cálculo c/ os desonerado"]
[null,null,null,null,null,null,null,null,"Os percentuais de Impostos a serem adotados devem ser indicados pelo Tomador, conforme legislação vigente. Apresentar declaração informando o percentual de ISS incidente sobre esta obra, considerando a base de cálculo prevista na legislação municipal.",null,null,null,null,null,null,null,null,null,"SEM DESONERAÇÃO",null,null,null,{"$f":"IF($F$9=$S$15,T32,IF($F$9=$S$16,X32,IF($F$9=$S$17,AB32,IF($F$9=$S$18,T38,IF($F$9=$S$19,X38,IF($F$9=$S$20,AB38))))))","v":0.20760000000000001},{"$f":"IF($F$9=$S$15,U32,IF($F$9=$S$16,Y32,IF($F$9=$S$17,AC32,IF($F$9=$S$18,U38,IF($F$9=$S$19,Y38,IF($F$9=$S$20,AC38))))))","v":0.26440000000000002},{"$f":"IF(F12=\"DESONERADO\",AB30,IF(F12=\"SEM DESONERAÇÃO\",Z30,\"\"))","v":""},{"$f":"TRUNC(ROUND(((1+F32+F34+F36)*(1+F38)*(1+F40))/(1-(F42+F43+F44))-1,4),4)","v":0.24110000000000001},null,{"$f":"TRUNC(ROUND(((1+F32+F34+F36)*(1+F38)*(1+F40))/(1-(F42+F43+F44+F45))-1,4),4)","v":0.24110000000000001}]
[null,"Parâmetro",null,null,null,"%","Verificação",null,null,null,null,null,null,null,null,null,null,null,"DESONERADO",null,null,null,"Falta preencher algum item do BDI:",null,null,{"$f":"IF(F12=\"DESONERADO\",OR(F32=\"\",F34=\"\",F36=\"\",F38=\"\",F40=\"\",F42=\"\",F43=\"\",F44=\"\",F45=\"\"),OR(F32=\"\",F34=\"\",F36=\"\",F38=\"\",F40=\"\",F42=\"\",F43=\"\",F44=\"\"))","v":false},{"$f":"IF(F12=\"SEM DESONERAÇÃO\",AND(F32=\"\",F34=\"\",F36=\"\",F38=\"\",F40=\"\",F42=\"\",F43=\"\",F44=\"\"))","v":false},null,{"$f":"IF(F12=\"SEM DESONERAÇÃO\",AND(F32=\"\",F34=\"\",F36=\"\",F38=\"\",F40=\"\",F42=\"\",F43=\"\",F44=\"\"),IF(F12=\"DESONERADO\",AND(F32=\"\",F34=\"\",F36=\"\",F38=\"\",F40=\"\",F42=\"\",F43=\"\",F44=\"\",F45=\"\"),\"NULO\"))","v":"NULO"},{"$f":"OR(B22=Z30,B22=AB30)","v":true}]
[null,"Administração Central",null,null,null,4.4999999999999998E-2,{"$f":"IF(F9=\"Escolha o tipo de obra\",\"\",IF(F32=\"\",\"\",IF(F32<C33,\"FORA DO LIMITE\",IF(F32>E33,\"FORA DO LIMITE\",\"OK\"))))","v":"OK"},null,null,null,null,null,null,null,null,null,null,null,"Edifícios",0.2034,0.25,null,"Rodovias",0.19600000000000001,0.24229999999999999,null,"Redes",0.20760000000000001,0.26440000000000002]
[null,"Mín:",{"$f":"IF($F$9=$S$15,S33,IF($F$9=$S$16,W33,IF($F$9=$S$17,AA33,IF($F$9=$S$18,S39,IF($F$9=$S$19,W39,IF($F$9=$S$20,AA39,\"\"))))))","v":3.4299999999999997E-2},"Máx:",{"$f":"IF($F$9=$S$15,T33,IF($F$9=$S$16,X33,IF($F$9=$S$17,AB33,IF($F$9=$S$18,T39,IF($F$9=$S$19,X39,IF($F$9=$S$20,AB39,\"\"))))))","v":6.7100000000000007E-2},null,null,null,null,null,null,null,null,null,null,null,{"$f":"IF(#REF!=\"\",\"\",#REF!)","v":{"$error":"#REF!"}},null,0.03,5.5E-2,null,null,3.7999999999999999E-2,4.6699999999999998E-2,null,null,3.4299999999999997E-2,6.7100000000000007E-2,null,null,null,null,null,0.2034,0.25]
[null,"Seguros e Garantias",null,null,null,5.0000000000000001E-3,{"$f":"IF(F9=\"Escolha o tipo de obra\",\"\",IF(F34=\"\",\"\",IF(F34<C35,\"FORA DO LIMITE\",IF(F34>E35,\"FORA DO LIMITE\",\"OK\"))))","v":"OK"},null,null,null,null,null,null,null,null,null,{"$f":"TODAY()","v":"2024-08-09"},null,8.0000000000000002E-3,0.01,null,null,3.2000000000000002E-3,7.4000000000000003E-3,null,null,2.8E-3,7.4999999999999997E-3,null,null,null,null,null,0.19600000000000001,0.24229999999999999]
[null,"Mín:",{"$f":"IF($F$9=$S$15,S34,IF($F$9=$S$16,W34,IF($F$9=$S$17,AA34,IF($F$9=$S$18,S40,IF($F$9=$S$19,W40,IF($F$9=$S$20,AA40,\"\"))))))","v":2.8E-3},"Máx:",{"$f":"IF($F$9=$S$15,T34,IF($F$9=$S$16,X34,IF($F$9=$S$17,AB34,IF($F$9=$S$18,T40,IF($F$9=$S$19,X40,IF($F$9=$S$20,AB40,\"\"))))))","v":7.4999999999999997E-3},null,null,null,null,null,null,null,null,null,null,null,null,null,9.7000000000000003E-3,1.2699999999999999E-2,null,null,5.0000000000000001E-3,9.7000000000000003E-3,null,null,0.01,1.7399999999999999E-2,null,null,null,null,null,0.20760000000000001,0.26440000000000002]
[null,"Riscos",null,null,null,1.0999999999999999E-2,{"$f":"IF(F9=\"Escolha o tipo de obra\",\"\",IF(F36=\"\",\"\",IF(F36<C37,\"FORA DO LIMITE\",IF(F36>E37,\"FORA DO LIMITE\",\"OK\"))))","v":"OK"},null,"As tabelas que apresentam os limites foram construídas sem considerar a desoneração sobre a folha de pagamento prevista na Lei n° 12.844/2013. Caso o CNAE da empresa indique que a mesma deve considerar a contribuição previdenciária sobre a receita bruta, será somada a alíquota de 2% no item impostos.",null,null,null,null,null,null,null,null,null,5.8999999999999999E-3,1.3899999999999999E-2,null,null,1.0200000000000001E-2,1.21E-2,null,null,9.4000000000000004E-3,1.17E-2,null,null,null,null,null,0.24,0.27860000000000001]
[null,"Mín:",{"$f":"IF($F$9=$S$15,S35,IF($F$9=$S$16,W35,IF($F$9=$S$17,AA35,IF($F$9=$S$18,S41,IF($F$9=$S$19,W41,IF($F$9=$S$20,AA41,\"\"))))))","v":0.01},"Máx:",{"$f":"IF($F$9=$S$15,T35,IF($F$9=$S$16,X35,IF($F$9=$S$17,AB35,IF($F$9=$S$18,T41,IF($F$9=$S$19,X41,IF($F$9=$S$20,AB41,\"\"))))))","v":1.7399999999999999E-2},null,null,null,null,null,null,null,null,null,null,null,null,null,6.1600000000000002E-2,8.9599999999999999E-2,null,null,6.6400000000000001E-2,8.6900000000000005E-2,null,null,6.7400000000000002E-2,9.4E-2,null,null,null,null,null,0.22800000000000001,0.3095]
[null,"Despesas Financeiras",null,null,null,1.11E-2,{"$f":"IF(F9=\"Escolha o tipo de obra\",\"\",IF(F38=\"\",\"\",IF(F38<C39,\"FORA DO LIMITE\",IF(F38>E39,\"FORA DO LIMITE\",\"OK\"))))","v":"OK"},null,null,null,null,null,null,null,null,null,null,null,"Elétrica",0.24,0.27860000000000001,null,"Portos",0.22800000000000001,0.3095,null,"Equipamentos",0.111,0.16800000000000001,null,null,null,null,0.111,0.16800000000000001]
[null,"Mín:",{"$f":"IF($F$9=$S$15,S36,IF($F$9=$S$16,W36,IF($F$9=$S$17,AA36,IF($F$9=$S$18,S42,IF($F$9=$S$19,W42,IF($F$9=$S$20,AA42,\"\"))))))","v":9.4000000000000004E-3},"Máx:",{"$f":"IF($F$9=$S$15,T36,IF($F$9=$S$16,X36,IF($F$9=$S$17,AB36,IF($F$9=$S$18,T42,IF($F$9=$S$19,X42,IF($F$9=$S$20,AB42,\"\"))))))","v":1.17E-2},null,null,null,null,null,null,null,null,null,null,null,null,null,5.2900000000000003E-2,7.9299999999999995E-2,null,null,0.04,7.85E-2,null,null,1.4999999999999999E-2,4.4900000000000002E-2]
[null,"Lucro",null,null,null,0.08,{"$f":"IF(F9=\"Escolha o tipo de obra\",\"\",IF(F40=\"\",\"\",IF(F40<C41,\"FORA DO LIMITE\",IF(F40>E41,\"FORA DO LIMITE\",\"OK\"))))","v":"OK"},null,null,null,null,null,null,null,null,null,null,null,2.5000000000000001E-3,5.5999999999999999E-3,null,null,8.0999999999999996E-3,1.9900000000000001E-2,null,null,3.0000000000000001E-3,8.2000000000000007E-3]
[null,"Mín:",{"$f":"IF($F$9=$S$15,S37,IF($F$9=$S$16,W37,IF($F$9=$S$17,AA37,IF($F$9=$S$18,S43,IF($F$9=$S$19,W43,IF($F$9=$S$20,AA43,\"\"))))))","v":6.7400000000000002E-2},"Máx:",{"$f":"IF($F$9=$S$15,T37,IF($F$9=$S$16,X37,IF($F$9=$S$17,AB37,IF($F$9=$S$18,T43,IF($F$9=$S$19,X43,IF($F$9=$S$20,AB43,\"\"))))))","v":9.4E-2},null,null,null,null,null,null,null,null,null,null,null,null,null,0.01,1.9699999999999999E-2,null,null,1.46E-2,3.1600000000000003E-2,null,null,5.5999999999999999E-3,8.8999999999999999E-3]
[null,"Impostos: PIS",null,null,null,6.4999999999999997E-3,{"$f":"IF(F9=\"Escolha o tipo de obra\",\"\",IF(F42=\"\",\"\",IF(F42<>0.0065,\"Em geral deve ser 0,65%\",\"OK\")))","v":"OK"},null,null,null,null,null,null,null,null,null,null,null,1.01E-2,1.11E-2,null,null,9.4000000000000004E-3,1.3299999999999999E-2,null,null,8.5000000000000006E-3,1.11E-2]
[null,"Impostos: COFINS",null,null,null,0.03,{"$f":"IF(F9=\"Escolha o tipo de obra\",\"\",IF(F43=\"\",\"\",IF(F43<>0.03,\"Em geral deve ser 3,00%\",\"OK\")))","v":"OK"},null,null,null,null,null,null,null,null,null,null,null,0.08,9.5100000000000004E-2,null,null,7.1400000000000005E-2,0.1043,null,null,3.5000000000000003E-2,6.2199999999999998E-2]
[null,"Impostos: ISS (mun.)",null,null,null,0.03,{"$f":"IF(F9=\"Escolha o tipo de obra\",\"\",IF(F44=\"\",\"\",IF(F44>0.05,\"FORA DO LIMITE\",\"OK\")))","v":"OK"}]
[null,"Regime de desoneração (4,5%)",null,null,null,{"$f":"IF(F12=\"ONERADO\",0,IF(F12=\"DESONERADO\",0.045,\"\"))","v":0},{"$f":"IF(F12=\"Escolha o regime de contribuição\",\"\",IF(F12=\"DESONERADO\",\"OK\",IF(F12=\"ONERADO\",\"OK\")))","v":"OK"}]
[]
[]
[]
[]
[]
[null,null,null,null,null,null,null,null,null,null,null,null,null,null,null,"Declaramos que será adotado o regime "]
[null,null,null,null,null,null,null,null,null,null,null,null,null,null,null," de tributação da folha de pagamento, para a elaboração do orçamento relativo às obras do presente contrato de repasse, por se tratar da opção mais adequada para a administração pública. "]